bitfinex/quotes_SOLUSD_20250814
["timestamp","ask_amount","ask_price","bid_price","bid_amount"]
[1755204450525,0.06,191.99,191.98,8.63770926]
[1755204451440,0.78,191.99,191.96,8.63770926]
[1755204451616,0.72,191.98,191.96,8.63770926]
[1755204451821,0.06,191.99,191.97,8.63770926]
[1755204452030,0.06,191.99,191.98,8.63770926]
[1755204454234,0.06,191.99,191.97,5.2090629]
[1755204454448,0.06,191.99,191.98,8.63770926]
[1755204454646,0.06,191.99,191.98,8.76770926]
[1755204454859,0.06,191.99,191.98,23.87392483]
[1755204455150,0.06,192.01,191.99,15.10621557]
[1755204455326,0.06,192.04,192.03,41.10621557]
[1755204455530,0.06,192.04,192.03,34.63770926]
[1755204456450,0.06,192.04,192.03,39.84522891]
[1755204456832,0.06,192.04,192.03,55.08144448]
[1755204457034,0.06,192.04,192.03,54.95144448]
[1755204457248,0.06,192.04,192.03,55.08144448]
[1755204457832,0.06,192.06,192.04,15.10621557]
[1755204458027,0.06,192.06,192.05,49.74392483]
[1755204458243,0.06,192.06,192.05,8.63770926]
[1755204458935,0.78,192.06,192.04,8.63770926]
[1755204459138,0.78,192.06,192.05,8.63770926]
[1755204459331,0.06,192.06,192.05,8.63770926]
[1755204460128,0.78,192.06,192.05,8.63770926]
[1755204460352,0.06,192.06,192.05,8.63770926]
[1755204460538,0.06,192.06,192.05,28.95090217]
[1755204460836,0.06,192.06,192.05,29.08090217]
[1755204461257,0.06,192.06,192.03,26.0]
[1755204461437,0.06,192.06,192.05,8.63770926]
[1755204461985,0.06,192.06,192.05,26.0]
[1755204462273,0.06,192.06,192.05,34.63770926]
[1755204463855,0.06,192.06,192.05,39.8446866]
[1755204464174,0.06,192.08,192.06,15.10621557]
[1755204464338,0.06,192.1,192.09,41.10621557]
[1755204464544,0.06,192.1,192.09,88.28392483]
[1755204464880,0.06,192.1,192.09,88.35392483]
[1755204465454,0.06,192.12,192.1,15.10621557]
[1755204465643,0.06,192.12,192.11,8.63770926]
[1755204465840,0.06,192.12,192.11,13.84306036]
[1755204466282,0.06,192.12,192.11,28.94927593]
[1755204466737,0.06,192.12,192.11,29.01927593]
[1755204467142,0.06,192.17,192.15,26.0]
[1755204467339,0.06,192.17,192.14,26.0]
[1755204467340,0.06,192.17,192.16,8.63770926]
[1755204467558,0.78,192.17,192.16,8.63770926]
[1755204468465,0.06,192.17,192.16,8.63770926]
[1755204468767,0.06,192.17,192.16,28.94792149]
[1755204470579,0.06,192.17,192.16,29.01792149]
[1755204470873,0.06,192.21,192.2,15.10621557]
[1755204471057,0.06,192.21,192.2,23.74392483]
[1755204471572,0.06,192.21,192.2,23.81392483]
[1755204471873,0.06,192.23,192.22,41.10621557]
[1755204472054,0.06,192.23,192.22,93.46629711]
[1755204472251,0.2,192.24,192.23,23.74392483]
[1755204473354,0.2,192.31,192.3,41.10621557]
[1755204473553,0.2,192.33,192.31,15.10621557]
[1755204473764,0.2,192.33,192.32,23.74392483]
[1755204474153,0.2,192.33,192.32,28.94359205]
[1755204474360,0.2,192.33,192.32,29.01359205]
[1755204474556,0.2,192.33,192.32,28.94359205]
[1755204475952,0.06,192.42,192.34,41.10621557]
[1755204476169,0.06,192.42,192.34,46.30534211]
[1755204476374,0.72,192.4,192.34,54.94305137]
[1755204476897,0.72,192.39,192.34,49.74392483]
[1755204477099,0.72,192.39,192.34,54.94305137]
[1755204477302,0.78,192.42,192.34,54.94305137]
[1755204477669,0.72,192.38,192.34,54.94305137]
[1755204478289,0.92,192.35,192.3,15.10621557]
[1755204478592,0.92,192.35,192.34,8.63770926]
[1755204480318,0.2,192.35,192.34,26.0]
[1755204480769,0.2,192.35,192.34,34.63770926]
[1755204480770,0.88,192.35,192.34,34.63770926]
[1755204481301,0.88,192.35,192.3,8.63770926]
[1755204481471,0.68,192.34,192.29,26.0]
[1755204481677,0.68,192.34,192.29,8.63770926]
[1755204481878,0.68,192.34,192.29,34.63770926]
[1755204482073,0.68,192.34,192.29,8.63770926]
[1755204482399,0.68,192.34,192.3,8.63770926]
[1755204482400,5.87936042,192.34,192.3,8.63770926]
[1755204482691,0.68,192.33,192.29,34.63770926]
[1755204482884,5.19936042,192.34,192.3,8.63770926]
[1755204483193,0.68,192.33,192.32,8.63770926]
[1755204483507,0.2,192.35,192.34,26.0]
[1755204483671,0.2,192.35,192.34,34.63770926]
[1755204484007,0.2,192.35,192.34,49.74392483]
[1755204484301,0.2,192.35,192.34,34.63770926]
[1755204484302,0.88,192.35,192.34,34.63770926]
[1755204484675,6.07892919,192.35,192.27,5.20084448]
[1755204484877,0.68,192.34,192.31,8.63770926]
[1755204485080,0.68,192.33,192.31,8.63770926]
[1755204485408,0.68,192.33,192.29,26.0]
[1755204485570,0.68,192.32,192.29,26.0]
[1755204485896,0.68,192.31,192.3,26.0]
[1755204486098,0.68,192.31,192.28,8.63770926]
[1755204486392,5.39898857,192.35,192.29,8.63770926]
[1755204486393,0.68,192.3,192.29,8.63770926]
[1755204486767,0.68,192.3,192.28,34.63770926]
[1755204486988,0.68,192.29,192.27,8.63770926]
[1755204487180,0.68,192.29,192.26,23.07822502]
[1755204487788,0.68,192.28,192.26,23.07822502]
[1755204487980,5.19939686,192.33,192.26,23.07822502]
[1755204487981,0.68,192.27,192.26,23.07822502]
[1755204489921,5.20023831,192.3,192.26,31.71593428]
[1755204489922,0.68,192.3,192.26,31.71593428]
[1755204490075,0.68,192.33,192.29,8.63770926]
[1755204490396,0.68,192.33,192.26,28.27946927]
[1755204490397,5.39899065,192.35,192.31,8.63770926]
[1755204490703,9.31770926,192.32,192.26,31.71593428]
[1755204491002,9.31770926,192.31,192.26,23.07822502]
[1755204491169,8.63770926,192.31,192.26,23.07822502]
[1755204491374,0.68,192.3,192.26,31.71593428]
[1755204491582,0.68,192.29,192.26,31.71593428]
[1755204491784,8.63770926,192.34,192.28,8.63770926]
[1755204491985,0.68,192.31,192.28,8.63770926]
[1755204492197,0.68,192.31,192.29,8.63770926]
[1755204492776,0.68,192.3,192.28,8.63770926]
[1755204493204,5.19950749,192.33,192.28,8.63770926]
[1755204493380,0.68,192.32,192.29,8.63770926]
[1755204493587,5.19912654,192.34,192.29,8.63770926]
[1755204493795,0.68,192.32,192.29,8.63770926]
[1755204493988,5.19912654,192.34,192.26,23.07822502]
[1755204493989,0.68,192.31,192.28,8.63770926]
[1755204494194,0.68,192.3,192.26,31.71593428]
[1755204494394,0.68,192.3,192.28,8.63770926]
[1755204494797,0.68,192.29,192.27,8.63770926]
[1755204495000,5.20004836,192.31,192.27,8.63770926]
[1755204495310,0.68,192.28,192.26,23.07822502]
[1755204495487,0.68,192.27,192.26,23.07822502]
[1755204496582,5.88101939,192.27,192.26,23.07822502]
[1755204497002,14.51872865,192.27,192.26,23.07822502]
[1755204497205,14.51872865,192.27,192.22,0.03]
[1755204497508,0.68,192.26,192.22,0.03]
[1755204498226,9.31770926,192.26,192.22,0.03]
[1755204498392,8.63770926,192.25,192.22,0.03]
[1755204498592,0.68,192.25,192.23,8.63770926]
[1755204498811,38.54,192.29,192.23,8.63770926]
[1755204498812,5.20077576,192.28,192.23,8.63770926]
[1755204498999,0.68,192.27,192.23,8.63770926]
[1755204499202,0.68,192.26,192.23,8.63770926]
[1755204499394,5.20077576,192.28,192.23,8.63770926]
[1755204499594,0.68,192.25,192.23,8.63770926]
[1755204499915,5.88116327,192.27,192.23,8.63770926]
[1755204500090,0.68,192.26,192.23,8.63770926]
[1755204500501,5.20116327,192.27,192.22,0.03]
[1755204500502,0.68,192.25,192.22,0.03]
[1755204500908,8.63770926,192.24,192.22,0.03]
[1755204501110,8.63770926,192.23,192.22,0.03]
[1755204501288,9.31770926,192.23,192.22,0.03]
[1755204501495,0.68,192.23,192.22,0.03]
[1755204501806,0.68,192.27,192.22,8.66770926]
[1755204502007,0.68,192.26,192.22,8.66770926]
[1755204502190,0.68,192.26,192.23,8.63770926]
[1755204502687,0.68,192.25,192.22,0.03]
[1755204502892,8.63770926,192.24,192.22,0.03]
[1755204503125,9.31770926,192.25,192.22,0.03]
[1755204503296,0.68,192.23,192.22,0.03]
[1755204503990,14.5198109,192.23,192.22,0.03]
[1755204505211,5.88210164,192.23,192.22,0.03]
[1755204505790,14.5198109,192.23,192.2,0.03]
[1755204505994,13.8403522,192.21,192.2,0.03]
[1755204506194,5.20264294,192.21,192.2,0.03]
[1755204506401,14.5203522,192.21,192.2,0.03]
[1755204506615,5.88264294,192.21,192.2,0.03]
[1755204506824,39.24,192.21,192.2,0.03]
[1755204507912,44.42264294,192.21,192.2,0.03]
[1755204508298,53.0603522,192.21,192.2,0.03]
[1755204508502,39.22,192.21,192.2,0.03]
[1755204508811,53.0603522,192.21,192.2,0.03]
[1755204509002,69.52290674,192.21,192.13,26.0]
[1755204509206,8.63770926,192.2,192.14,8.63770926]
[1755204509941,53.0606193,192.21,192.16,0.03]
[1755204510123,0.68,192.2,192.16,0.03]
[1755204510621,0.68,192.19,192.16,0.03]
[1755204511317,43.76291004,192.21,192.17,8.63770926]
[1755204511503,44.46291004,192.21,192.17,8.63770926]
[1755204512414,5.90128991,192.26,192.2,8.63770926]
[1755204512613,38.6,192.25,192.21,8.63770926]
[1755204512816,0.7,192.24,192.19,34.63770926]
[1755204513009,0.7,192.23,192.19,34.63770926]
[1755204513314,0.7,192.22,192.19,25.978225]
[1755204513515,0.7,192.22,192.16,8.66770926]
[1755204513516,39.3,192.21,192.16,8.66770926]
[1755204513704,39.3,192.21,192.16,0.03]
[1755204513705,0.7,192.2,192.16,0.03]
[1755204513910,0.7,192.2,192.16,8.66770926]
[1755204514116,0.7,192.19,192.16,8.66770926]
[1755204514425,5.20291363,192.2,192.16,0.03]
[1755204514426,9.33770926,192.18,192.16,0.03]
[1755204514632,47.21770926,192.17,192.16,0.03]
[1755204515130,47.91770926,192.17,192.16,0.03]
[1755204515800,39.28,192.17,192.16,0.03]
[1755204516000,44.48372586,192.17,192.16,0.03]
[1755204517460,39.28,192.17,192.16,0.03]
[1755204517623,38.58,192.17,192.16,0.03]
[1755204517827,44.48372586,192.17,192.16,0.03]
[1755204518045,53.12143512,192.17,192.16,0.03]
[1755204518522,68.22765069,192.17,192.09,0.03]
[1755204518701,8.63770926,192.12,192.09,0.03]
[1755204518900,38.56,192.11,192.09,0.03]
[1755204519114,39.26,192.1,192.09,0.03]
[1755204519426,44.46562207,192.1,192.09,0.03]
[1755204520335,38.56,192.1,192.09,0.03]
[1755204521936,38.56,192.1,192.09,8.66770926]
[1755204525031,38.56,192.1,192.09,13.87360233]
[1755204525820,38.56,192.1,192.09,8.66770926]
[1755204526151,39.26,192.1,192.09,8.66770926]
[1755204526856,38.56,192.1,192.09,8.66770926]
[1755204528458,38.44,192.1,192.09,13.87359291]
[1755204528825,38.44,192.1,192.09,8.66770926]
[1755204529221,38.44,192.1,192.09,0.03]
[1755204529415,39.14,192.1,192.09,0.03]
[1755204529720,38.44,192.1,192.09,0.03]
[1755204530159,44.34562207,192.1,192.09,0.03]
[1755204530447,39.14,192.1,192.09,0.03]
[1755204531122,44.34562207,192.1,192.09,0.03]
[1755204532747,52.98333133,192.1,192.09,0.03]
[1755204538732,49.95391783,192.1,192.09,0.03]
[1755204540135,5.20542924,192.11,192.09,0.03]
[1755204540451,5.20343494,192.19,192.1,5.60829576]
[1755204540630,0.06,192.18,192.17,5.60829576]
[1755204540840,38.34,192.18,192.17,5.60829576]
[1755204541927,42.49275539,192.18,192.11,26.0]
[1755204542122,9.35658343,192.17,192.12,5.60829576]
[1755204542325,38.28,192.16,192.11,26.0]
[1755204542552,38.28,192.16,192.14,5.60829576]
[1755204542757,38.28,192.16,192.13,8.61899369]
[1755204543641,38.97,192.16,192.13,8.61899369]
[1755204543867,0.69,192.15,192.13,8.61899369]
[1755204544064,0.69,192.15,192.09,0.03]
[1755204544065,46.89899369,192.14,192.09,0.03]
[1755204544231,44.17469836,192.14,192.1,8.61899369]
[1755204544552,3.46445557,192.13,192.1,8.61899369]
[1755204544858,0.69,192.17,192.12,8.61899369]
[1755204545033,38.26,192.16,192.15,8.61899369]
[1755204546155,38.32,192.16,192.15,8.61899369]
[1755204547868,44.21399666,192.16,192.1,31.20560349]
[1755204548033,0.69,192.15,192.11,8.61899369]
[1755204548355,38.93,192.14,192.11,8.61899369]
[1755204548546,5.20480924,192.13,192.11,8.61899369]
[1755204548751,38.95,192.12,192.09,8.64899369]
[1755204548947,0.69,192.11,192.09,8.64899369]
[1755204549145,38.26,192.1,192.09,8.64899369]
[1755204550063,38.26,192.1,192.09,0.03]
[1755204550359,38.26,192.1,192.09,8.64899369]
[1755204550536,38.26,192.1,192.09,0.03]
[1755204550733,38.95,192.1,192.09,0.03]
[1755204550954,44.15562207,192.1,192.09,0.03]
[1755204551133,38.95,192.1,192.09,0.03]
[1755204552038,44.15562207,192.1,192.09,0.03]
[1755204552440,47.62567315,192.1,192.09,0.03]
[1755204555049,42.42005108,192.1,192.09,0.03]
[1755204555251,46.93567315,192.1,192.09,0.03]
[1755204555768,47.62567315,192.1,192.09,0.03]
[1755204556073,47.52567315,192.1,192.09,0.03]
[1755204557371,41.63005108,192.1,192.09,0.03]
[1755204557568,41.63005108,192.1,192.09,8.64899369]
[1755204559260,3.47005108,192.1,192.09,8.64899369]
[1755204559570,38.12,192.1,192.09,8.64899369]
[1755204559745,4.37209066,192.16,192.09,14.03488676]
[1755204559942,38.12,192.15,192.1,0.18]
[1755204560146,38.12,192.15,192.14,8.61899369]
[1755204560345,41.59244146,192.15,192.14,8.61899369]
[1755204562373,41.59244146,192.15,192.13,8.61899369]
[1755204562545,3.47244146,192.14,192.13,8.61899369]
[1755204562748,3.47244146,192.14,192.13,5.60259982]
[1755204563770,3.53244146,192.14,192.13,10.80740906]
[1755204564070,3.53244146,192.14,192.13,5.60259982]
[1755204564970,0.06,192.14,192.13,5.60259982]
[1755204565479,0.06,192.14,192.13,10.80740906]
[1755204565678,0.06,192.14,192.13,5.60259982]
[1755204566175,0.75,192.14,192.13,5.60259982]
[1755204566355,0.75,192.14,192.12,5.60259982]
[1755204566556,38.81,192.13,192.1,5.60259982]
[1755204566969,38.12,192.13,192.1,5.60259982]
[1755204567168,0.06,192.14,192.12,5.60259982]
[1755204567365,0.06,192.14,192.13,5.60259982]
[1755204567575,38.18,192.14,192.13,5.60259982]
[1755204568868,38.18,192.14,192.13,5.78259982]
[1755204569072,0.06,192.14,192.13,5.78259982]
[1755204569279,38.18,192.14,192.13,10.98740906]
[1755204570002,38.18,192.14,192.13,10.80740906]
[1755204570284,38.18,192.14,192.1,26.0]
[1755204570586,38.18,192.14,192.13,5.60259982]
[1755204571157,38.88,192.14,192.13,5.60259982]
[1755204571372,38.88,192.14,192.12,5.60259982]
[1755204571575,0.7,192.13,192.11,5.60259982]
[1755204571878,38.18,192.14,192.12,5.60259982]
[1755204572186,38.18,192.14,192.13,5.60259982]
[1755204572552,38.18,192.14,192.13,5.78259982]
[1755204572751,0.06,192.14,192.13,5.78259982]
[1755204573061,38.18,192.16,192.15,41.10621557]
[1755204573387,0.06,192.16,192.15,52.09308288]
[1755204574754,0.06,192.16,192.15,51.91308288]
[1755204576056,0.06,192.2,192.15,51.91308288]
[1755204576057,0.06,192.2,192.16,46.36621557]
[1755204576275,0.06,192.23,192.22,41.10621557]
[1755204576590,5.07209066,192.37,192.23,15.10621557]
[1755204576754,39.36,192.31,192.26,26.0]
[1755204576956,39.36,192.31,192.3,26.0]
[1755204577154,39.36,192.31,192.3,31.60259982]
[1755204577983,0.7,192.34,192.3,31.60259982]
[1755204578180,0.7,192.34,192.32,5.60259982]
[1755204578358,0.76,192.37,192.32,5.60259982]
[1755204578559,0.06,192.37,192.32,5.60259982]
[1755204578760,0.9,192.35,192.32,8.59937769]
[1755204579059,0.2,192.35,192.32,23.70559326]
[1755204579368,39.5,192.35,192.32,23.70559326]
[1755204580673,39.5,192.35,192.31,5.19982959]
[1755204580674,39.5,192.35,192.29,31.20024057]
[1755204580880,0.76,192.33,192.32,8.59937769]
[1755204581084,0.7,192.32,192.3,26.0]
[1755204581386,0.7,192.32,192.31,8.59937769]
[1755204581595,0.06,192.33,192.31,8.59937769]
[1755204581774,0.06,192.33,192.32,8.59937769]
[1755204582176,0.76,192.33,192.32,8.59937769]
[1755204583076,0.76,192.33,192.3,8.59937769]
[1755204583587,0.76,192.33,192.32,8.59937769]
[1755204583779,0.06,192.33,192.32,8.59937769]
[1755204583966,39.36,192.33,192.32,8.59937769]
[1755204584684,40.06,192.33,192.27,26.0]
[1755204584876,40.06,192.33,192.32,8.59937769]
[1755204585690,40.06,192.33,192.31,8.59937769]
[1755204585870,0.7,192.32,192.31,8.59937769]
[1755204586373,0.7,192.32,192.3,8.59937769]
[1755204586569,0.7,192.31,192.3,8.59937769]
[1755204590865,0.7,192.31,192.29,34.59937769]
[1755204591066,0.7,192.3,192.28,8.59937769]
[1755204591282,5.19995942,192.31,192.27,8.59937769]
[1755204591283,0.7,192.29,192.27,8.59937769]
[1755204591483,5.19995942,192.31,192.24,26.0]
[1755204591484,0.7,192.28,192.24,26.0]
[1755204591682,0.06,192.33,192.3,26.0]
[1755204591878,0.06,192.33,192.32,8.59937769]
[1755204592471,0.06,192.33,192.32,13.79904491]
[1755204594676,0.06,192.33,192.32,8.59937769]
[1755204595581,0.06,192.33,192.32,13.79904491]
[1755204595779,0.06,192.33,192.32,8.59937769]
[1755204595990,0.76,192.33,192.32,8.59937769]
[1755204597394,0.76,192.33,192.31,8.59937769]
[1755204597605,0.7,192.32,192.31,8.59937769]
[1755204597796,0.7,192.32,192.31,34.59937769]
[1755204597982,0.7,192.32,192.31,8.59937769]
[1755204598184,0.7,192.32,192.3,8.59937769]
[1755204598400,0.7,192.32,192.3,34.59937769]
[1755204598975,0.7,192.31,192.3,34.59937769]
[1755204600177,0.7,192.31,192.25,0.03]
[1755204600379,47.51937769,192.3,192.25,0.03]
[1755204600578,47.51937769,192.3,192.19,8.59937769]
[1755204600579,8.59937769,192.26,192.19,8.59937769]
[1755204603721,0.72,192.3,192.28,5.59923364]
[1755204604011,0.72,192.3,192.26,5.59923364]
[1755204604777,0.72,192.29,192.26,5.59923364]
[1755204604981,0.72,192.28,192.26,5.59923364]
[1755204605698,39.58,192.31,192.27,5.59923364]
[1755204606008,38.84,192.31,192.3,5.59923364]
[1755204606800,38.84,192.31,192.3,8.60307766]
[1755204607007,38.84,192.31,192.28,26.0]
[1755204607199,39.56,192.31,192.3,8.60307766]
[1755204607705,39.56,192.31,192.28,34.60307766]
[1755204607895,39.56,192.31,192.28,8.60307766]
[1755204608294,38.84,192.31,192.3,8.60307766]
[1755204608981,39.56,192.31,192.28,8.60307766]
[1755204609177,38.84,192.31,192.28,8.60307766]
[1755204609504,0.72,192.3,192.28,8.60307766]
[1755204610035,38.84,192.31,192.29,8.60307766]
[1755204610180,0.06,192.33,192.29,8.60307766]
[1755204610181,0.06,192.33,192.3,8.60307766]
[1755204610379,38.84,192.33,192.32,8.60307766]
[1755204611296,0.06,192.33,192.32,8.63307766]
[1755204611704,0.06,192.33,192.32,8.60307766]
[1755204611911,0.06,192.33,192.32,13.80274488]
[1755204612116,0.06,192.33,192.32,28.93896045]
[1755204614429,0.1,192.36,192.33,15.10621557]
[1755204614593,0.1,192.36,192.35,26.0]
[1755204614798,0.1,192.36,192.35,34.60307766]
[1755204615055,0.1,192.36,192.35,39.83193391]
[1755204615440,0.1,192.36,192.35,54.90814948]
[1755204615733,0.82,192.36,192.34,26.0]
[1755204615904,0.1,192.36,192.35,8.60307766]
[1755204616508,0.82,192.36,192.35,8.60307766]
[1755204616752,6.0186546,192.36,192.3,2.081219]
[1755204616909,0.72,192.35,192.31,8.60307766]
[1755204617233,0.72,192.34,192.31,8.60307766]
[1755204617805,0.72,192.33,192.31,8.60307766]
[1755204618004,0.72,192.32,192.31,8.60307766]
[1755204619151,0.72,192.32,192.3,8.60307766]
[1755204619311,0.72,192.32,192.28,8.60307766]
[1755204619312,38.66,192.31,192.28,8.60307766]
[1755204619516,0.72,192.3,192.29,26.0]
[1755204620125,38.66,192.31,192.29,34.60307766]
[1755204620316,38.66,192.31,192.3,8.60307766]
[1755204620941,39.38,192.31,192.23,0.03]
[1755204621233,5.20047844,192.29,192.24,8.60307766]
[1755204621532,3.46861276,192.29,192.28,8.60307766]
[1755204621714,3.46861276,192.3,192.28,8.60307766]
[1755204621915,38.66,192.31,192.29,8.60307766]
[1755204622123,0.72,192.32,192.3,8.60307766]
[1755204622434,0.72,192.31,192.28,8.60307766]
[1755204622602,4.19030372,192.31,192.28,8.60307766]
[1755204622803,3.47030372,192.31,192.28,8.60307766]
[1755204623033,38.6,192.32,192.3,8.60307766]
[1755204623332,0.72,192.31,192.3,8.60307766]
[1755204623840,38.56,192.32,192.3,8.60307766]
[1755204624049,38.56,192.32,192.31,8.60307766]
[1755204624336,39.28,192.32,192.3,8.60307766]
[1755204624516,38.56,192.32,192.31,8.60307766]
[1755204624833,38.54,192.33,192.31,8.60307766]
[1755204625050,38.54,192.33,192.32,8.60307766]
[1755204625545,38.54,192.33,192.32,13.80274488]
[1755204625839,38.52,192.35,192.32,13.80274488]
[1755204626035,38.52,192.35,192.34,8.60307766]
[1755204626241,41.99276383,192.35,192.34,8.60307766]
[1755204626445,42.71276383,192.35,192.34,8.60307766]
[1755204627428,39.24,192.35,192.34,8.60307766]
[1755204628340,44.43885625,192.35,192.31,8.60307766]
[1755204628652,0.72,192.34,192.31,8.60307766]
[1755204628849,0.72,192.34,192.32,8.60307766]
[1755204629048,0.72,192.34,192.33,8.60307766]
[1755204629257,38.52,192.35,192.33,8.60307766]
[1755204629448,38.52,192.35,192.34,8.60307766]
[1755204630144,0.1,192.36,192.34,8.60307766]
[1755204630328,0.1,192.36,192.31,0.03]
[1755204630329,0.1,192.36,192.35,13.80193391]
[1755204630752,0.81,192.36,192.33,34.60307766]
[1755204630959,4.28277092,192.36,192.32,26.03]
[1755204631159,0.71,192.35,192.32,26.03]
[1755204631363,0.71,192.34,192.32,26.03]
[1755204631663,38.42,192.33,192.32,0.03]
[1755204631837,39.13,192.33,192.32,0.03]
[1755204632233,44.32939686,192.33,192.32,0.03]
[1755204632935,56.40480131,192.33,192.32,0.03]
[1755204633836,47.80172365,192.33,192.32,0.03]
[1755204634053,4.18232679,192.33,192.32,0.03]
[1755204634268,39.11,192.33,192.32,0.03]
[1755204634466,47.78180072,192.33,192.32,0.03]
[1755204634636,56.38487838,192.33,192.32,0.03]
[1755204635266,47.78180072,192.33,192.32,0.03]
[1755204635844,41.87240386,192.33,192.32,0.03]
[1755204636758,38.4,192.33,192.32,8.63307766]
[1755204638653,39.11,192.33,192.32,8.63307766]
[1755204638871,38.4,192.33,192.32,8.63307766]
[1755204641540,38.4,192.33,192.32,13.83274488]
[1755204641752,38.4,192.33,192.32,0.03]
[1755204641956,38.4,192.33,192.32,8.63307766]
[1755204643561,0.1,192.36,192.32,13.83274488]
[1755204643751,0.1,192.36,192.35,8.60307766]
[1755204644155,0.1,192.36,192.35,23.73929323]
[1755204645044,0.1,192.36,192.35,28.93814948]
[1755204645245,0.1,192.36,192.35,28.90814948]
[1755204646352,0.1,192.36,192.35,28.93814948]
[1755204646667,0.1,192.36,192.35,54.93814948]
[1755204646843,0.1,192.36,192.35,28.90814948]
[1755204647557,0.1,192.36,192.35,29.4580351]
[1755204648774,1e-08,192.36,192.35,55.4580351]
[1755204649066,0.06,192.37,192.36,15.10621557]
[1755204649269,0.06,192.37,192.36,23.73929323]
[1755204650269,0.06,192.37,192.36,61.93929323]
[1755204650469,0.06,192.37,192.36,67.13787921]
[1755204650847,1e-08,192.37,192.36,67.13787921]
[1755204651053,0.06,192.38,192.36,52.55152223]
[1755204651265,0.06,192.38,192.37,23.73929323]
[1755204651463,0.06,192.44,192.4,26.0]
[1755204651667,0.06,192.44,192.4,49.70929323]
[1755204651871,0.06,192.44,192.43,26.0]
[1755204652061,0.06,192.44,192.43,34.60307766]
[1755204652774,0.06,192.44,192.43,39.79977256]
[1755204654069,0.71,192.53,192.51,26.0]
[1755204654276,0.71,192.56,192.52,8.60307766]
[1755204654449,0.71,192.56,192.55,8.60307766]
[1755204656869,5.90319438,192.56,192.54,8.60307766]
[1755204657061,0.71,192.55,192.53,8.60307766]
[1755204657958,0.71,192.55,192.5,15.594542]
[1755204658259,0.71,192.55,192.5,8.60307766]
[1755204658776,5.19372597,192.54,192.5,8.60307766]
[1755204658974,0.71,192.53,192.49,8.60307766]
[1755204659175,38.18,192.52,192.48,34.60307766]
[1755204659378,0.71,192.51,192.48,34.60307766]
[1755204659678,0.71,192.51,192.47,26.0]
[1755204660282,0.71,192.51,192.47,34.60307766]
[1755204660472,0.71,192.51,192.44,15.599408]
[1755204660661,8.60307766,192.48,192.44,15.599408]
[1755204660860,5.19588485,192.46,192.42,8.60307766]
[1755204661279,0.65,192.45,192.42,8.60307766]
[1755204661483,0.65,192.44,192.42,8.60307766]
[1755204661668,5.19588485,192.46,192.42,8.60307766]
[1755204661980,0.65,192.43,192.42,8.60307766]
[1755204662178,0.65,192.43,192.4,8.60307766]
[1755204662485,0.65,192.42,192.41,34.60307766]
[1755204662688,0.65,192.42,192.41,26.0]
[1755204662888,0.65,192.42,192.41,34.60307766]
[1755204663088,0.65,192.42,192.41,26.0]
[1755204663269,38.18,192.42,192.41,8.60307766]
[1755204663884,38.18,192.46,192.41,8.60307766]
[1755204664080,38.18,192.46,192.45,8.60307766]
[1755204664391,38.83,192.46,192.44,8.60307766]
[1755204664592,0.65,192.45,192.44,8.60307766]
[1755204665686,0.65,192.45,192.43,8.60307766]
[1755204666065,38.18,192.46,192.44,8.60307766]
[1755204666290,38.18,192.46,192.45,8.60307766]
[1755204667693,0.65,192.52,192.45,13.8292325]
[1755204667893,38.18,192.51,192.5,8.60307766]